bitfinex/quotes_BTCUSD_20251110
["timestamp","ask_amount","ask_price","bid_price","bid_amount"]
[1762788628762,0.21027981,105580.0,105570.0,0.00673]
[1762788629178,0.18942981,105580.0,105570.0,0.00673]
[1762788629589,0.24054981,105580.0,105560.0,0.1929441]
[1762788629770,0.18942981,105580.0,105570.0,0.21670775]
[1762788630011,0.18942981,105580.0,105570.0,0.24213775]
[1762788630215,0.21376246,105590.0,105570.0,0.24213775]
[1762788630425,0.18941187,105590.0,105580.0,0.23538981]
[1762788630600,0.18941187,105590.0,105580.0,0.04596]
[1762788630820,0.18941187,105590.0,105580.0,0.02053]
[1762788631010,0.28466371,105600.0,105580.0,0.20995981]
[1762788631167,0.19886362,105600.0,105590.0,0.0085]
[1762788631577,0.19886362,105600.0,105590.0,0.02903]
[1762788631773,0.19886362,105600.0,105570.0,0.57943819]
[1762788631774,0.18942371,105590.0,105570.0,0.57943819]
[1762788632006,0.21027981,105580.0,105570.0,0.0507922]
[1762788632211,0.18944775,105570.0,105560.0,0.00047855]
[1762788632375,0.20432775,105570.0,105560.0,0.00047855]
[1762788632846,0.22517775,105570.0,105560.0,0.00047855]
[1762788633623,0.25544775,105570.0,105560.0,0.00047855]
[1762788633806,0.26544775,105570.0,105560.0,0.00147855]
[1762788634020,0.22517775,105570.0,105560.0,0.00147855]
[1762788634253,0.18944775,105570.0,105560.0,0.02300855]
[1762788634460,0.18944775,105570.0,105560.0,0.02100855]
[1762788634655,0.20432775,105570.0,105560.0,0.00047855]
[1762788634997,0.22517775,105570.0,105560.0,0.00047855]
[1762788635412,0.25544775,105570.0,105560.0,0.00047855]
[1762788635617,0.27544775,105570.0,105560.0,0.00047855]
[1762788636227,0.22617775,105570.0,105560.0,0.00047855]
[1762788636490,0.25644775,105570.0,105560.0,0.00047855]
[1762788636701,0.001,105570.0,105560.0,0.23590425]
[1762788636842,0.001,105570.0,105560.0,0.55890425]
[1762788637041,0.001,105570.0,105560.0,0.63041284]
[1762788637343,0.001,105570.0,105560.0,1.17848538]
[1762788637511,0.001,105570.0,105560.0,0.68120504]
[1762788637707,0.18943139,105580.0,105560.0,0.35820504]
[1762788637919,0.18944775,105570.0,105560.0,0.35820504]
[1762788638195,0.18943139,105580.0,105560.0,0.30741284]
[1762788638333,0.18944775,105570.0,105560.0,0.30741284]
[1762788638531,0.18944775,105570.0,105560.0,0.23590425]
[1762788638734,0.18943139,105580.0,105570.0,0.18944775]
[1762788639343,0.18943139,105580.0,105570.0,0.20997775]
[1762788639744,0.2137625,105590.0,105570.0,0.55840775]
[1762788639946,0.19888246,105590.0,105580.0,0.23538981]
[1762788640143,0.19888246,105590.0,105580.0,0.04596]
[1762788640758,0.19888246,105590.0,105580.0,0.02053]
[1762788641385,0.19888246,105590.0,105580.0,0.20995981]
[1762788641594,0.21376246,105590.0,105580.0,0.02053]
[1762788641791,0.18942981,105580.0,105570.0,0.18944775]
[1762788642110,0.18942981,105580.0,105570.0,0.02543]
[1762788642338,0.18942981,105580.0,105560.0,0.65899833]
[1762788642528,0.18942981,105580.0,105570.0,0.20997775]
[1762788642736,0.21376246,105590.0,105570.0,0.23540775]
[1762788642964,0.18942981,105580.0,105570.0,0.23540775]
[1762788643686,0.18942981,105580.0,105570.0,0.04596]
[1762788644156,0.18942981,105580.0,105570.0,0.02053]
[1762788644352,0.18942981,105580.0,105570.0,0.21097775]
[1762788644578,0.18942981,105580.0,105570.0,0.02153]
[1762788644714,0.18942981,105580.0,105570.0,0.02253]
[1762788645141,0.21376246,105590.0,105570.0,0.21197775]
[1762788645348,0.18942981,105580.0,105570.0,0.04796]
[1762788645569,0.18942981,105580.0,105570.0,0.23740775]
[1762788645773,0.18942981,105580.0,105570.0,0.02253]
[1762788645943,0.24054981,105580.0,105570.0,0.002]
[1762788646576,0.26054981,105580.0,105570.0,0.002]
[1762788646822,0.26054981,105580.0,105570.0,0.001]
[1762788646823,0.24054981,105580.0,105570.0,0.001]
[1762788646974,0.18942981,105580.0,105570.0,0.001]
[1762788647183,0.18944775,105570.0,105560.0,0.26616645]
[1762788647399,0.18944775,105570.0,105560.0,0.21537425]
[1762788647587,0.18944775,105570.0,105560.0,0.21047425]
[1762788647788,0.18942981,105580.0,105570.0,0.18944775]
[1762788647966,0.001,105580.0,105570.0,0.23540775]
[1762788648167,0.19042981,105580.0,105570.0,0.23540775]
[1762788648370,0.19042981,105580.0,105570.0,0.02053]
[1762788648766,0.18942981,105580.0,105570.0,0.23540775]
[1762788649248,0.19888246,105590.0,105570.0,0.73268809]
[1762788649427,0.18942981,105580.0,105570.0,0.26346995]
[1762788649636,0.18942981,105580.0,105570.0,0.28399995]
[1762788650414,0.18942981,105580.0,105570.0,0.0945522]
[1762788650628,0.18942981,105580.0,105570.0,0.0713222]
[1762788650850,0.18942981,105580.0,105570.0,0.26076995]
[1762788651408,0.18942981,105580.0,105570.0,0.28499995]
[1762788651737,0.21376246,105590.0,105570.0,0.28499995]
[1762788651939,0.21657125,105590.0,105580.0,0.20995981]
[1762788652302,0.01768879,105590.0,105580.0,0.20995981]
[1762788652571,0.18942981,105580.0,105570.0,0.001]
[1762788652786,0.18942981,105580.0,105570.0,0.19044775]
[1762788653007,0.18942981,105580.0,105570.0,0.0199]
[1762788653206,0.20712421,105580.0,105570.0,0.20934775]
[1762788653878,0.20712421,105580.0,105570.0,0.0199]
[1762788654018,0.20712421,105580.0,105570.0,0.20934775]
[1762788654621,0.20712421,105580.0,105570.0,0.20834775]
[1762788654824,0.20712421,105580.0,105570.0,0.20934775]
[1762788655042,0.20712421,105580.0,105570.0,0.001]
[1762788655043,0.25730421,105580.0,105570.0,0.001]
[1762788655241,0.22713421,105580.0,105570.0,0.001]
[1762788655821,0.20712421,105580.0,105570.0,0.001]
[1762788655963,0.20712421,105580.0,105570.0,0.23207775]
[1762788656371,0.20712421,105580.0,105570.0,0.04263]
[1762788656571,0.20712421,105580.0,105570.0,0.23207775]
[1762788656768,0.20712421,105580.0,105570.0,0.20934775]
[1762788656945,0.20712421,105580.0,105570.0,0.20834775]
[1762788657354,0.20812421,105580.0,105570.0,0.20834775]
[1762788657963,0.20712421,105580.0,105570.0,0.23107775]
[1762788658393,0.0176944,105580.0,105570.0,0.23107775]
[1762788659634,0.19886362,105600.0,105580.0,0.18942981]
[1762788659843,0.20709556,105600.0,105590.0,0.21405187]
[1762788660062,0.20709556,105600.0,105590.0,0.23678187]
[1762788660286,0.01769922,105600.0,105590.0,0.23678187]
[1762788660482,0.19906133,105620.0,105600.0,0.18938179]
[1762788660681,0.21676469,105620.0,105610.0,0.02557]
[1762788661309,0.26529469,105620.0,105610.0,0.00673]
[1762788661513,0.21676469,105620.0,105610.0,0.02557]
[1762788661934,0.21776469,105620.0,105610.0,0.02557]
[1762788662340,0.21776469,105620.0,105610.0,0.00673]
[1762788662542,0.21676469,105620.0,105610.0,0.02557]
[1762788663511,0.21676469,105620.0,105610.0,0.0483]
[1762788663734,0.21676469,105620.0,105610.0,0.02557]
[1762788663941,0.21776469,105620.0,105610.0,0.02557]
[1762788664313,0.21676469,105620.0,105610.0,0.02557]
[1762788664506,0.01793872,105620.0,105610.0,0.237676]
[1762788664739,0.00023536,105620.0,105610.0,0.237676]
[1762788665757,0.00023536,105620.0,105610.0,0.3056065]
[1762788666360,0.18959343,105620.0,105610.0,0.1162305]
[1762788667141,0.18959343,105620.0,105610.0,0.0483]
[1762788667565,0.00023536,105620.0,105610.0,0.0483]
[1762788667763,0.18959343,105620.0,105610.0,0.0483]
[1762788668074,0.00023536,105620.0,105610.0,0.237676]
[1762788669460,0.18959343,105620.0,105610.0,0.0483]
[1762788669664,0.00023536,105620.0,105610.0,0.237676]
[1762788670224,0.18959343,105620.0,105610.0,0.0483]
[1762788670761,0.00023536,105620.0,105610.0,0.0483]
[1762788670958,0.18959343,105620.0,105610.0,0.0483]
[1762788671687,0.18959343,105620.0,105610.0,0.237676]
[1762788671947,0.00023536,105620.0,105610.0,0.92823002]
[1762788672146,8e-05,105650.0,105640.0,0.18932222]
[1762788672327,0.00022351,105650.0,105640.0,0.02904]
[1762788672566,0.00022351,105650.0,105640.0,0.24109222]
[1762788673371,0.00022351,105650.0,105640.0,0.24209222]
[1762788675174,0.00022351,105650.0,105640.0,0.24309222]
[1762788677246,0.00022351,105650.0,105640.0,0.39976461]
[1762788677848,0.00092937,105650.0,105640.0,0.39976461]
[1762788679560,0.00092937,105650.0,105640.0,0.76731863]
[1762788679971,0.00092937,105650.0,105640.0,0.39976461]
[1762788680407,0.00092937,105650.0,105640.0,0.31396452]
[1762788680829,0.19023367,105650.0,105640.0,0.1246423]
[1762788681252,0.19023367,105650.0,105640.0,0.03104]
[1762788681867,0.20416367,105650.0,105640.0,0.0122]
[1762788682086,0.26203056,105650.0,105640.0,0.0122]
[1762788682298,0.32610284,105650.0,105640.0,0.002]
[1762788682515,0.28625595,105650.0,105640.0,0.002]
[1762788683190,0.28625595,105650.0,105640.0,0.001]
[1762788683426,0.18932222,105640.0,105630.0,0.00862]
[1762788683829,0.20781284,105640.0,105630.0,0.00862]
[1762788684658,0.18935807,105620.0,105610.0,0.02788]
[1762788684891,0.18935635,105630.0,105610.0,0.217256]
[1762788685089,0.18959168,105630.0,105620.0,0.02115]
[1762788685355,0.18959168,105630.0,105620.0,0.22888807]
[1762788685610,0.18957547,105630.0,105620.0,0.22888807]
[1762788685865,0.18957547,105630.0,105620.0,0.03953]
[1762788687600,0.18957547,105630.0,105620.0,0.01838]
[1762788687803,0.18957547,105630.0,105620.0,0.20773807]
[1762788688044,0.00023533,105630.0,105620.0,0.20773807]
[1762788688267,0.19057547,105630.0,105620.0,0.20773807]
[1762788688532,0.00123533,105630.0,105620.0,0.22888807]
[1762788688973,0.19057547,105630.0,105620.0,0.01838]
[1762788689179,0.19057547,105630.0,105620.0,0.20773807]
[1762788689397,0.01891007,105630.0,105620.0,0.20773807]
[1762788689625,0.01891007,105630.0,105620.0,0.22888807]
[1762788690100,0.0002,105690.0,105670.0,0.18926568]
[1762788690326,0.01834231,105690.0,105680.0,0.0139]
[1762788690614,0.18991073,105690.0,105680.0,0.0278]
[1762788690802,0.18991073,105690.0,105680.0,0.0139]
[1762788690803,0.00067807,105690.0,105680.0,0.0139]
[1762788691017,0.00067807,105690.0,105680.0,0.20315056]
[1762788691785,0.00067807,105690.0,105680.0,0.21705056]
[1762788692193,0.18991073,105690.0,105680.0,0.09869515]
[1762788692413,0.18991073,105690.0,105680.0,0.08479515]
[1762788692575,0.25010073,105690.0,105670.0,0.18926766]
[1762788692785,0.18925056,105680.0,105670.0,0.0139]
[1762788693018,0.18925056,105680.0,105670.0,0.20316783]
[1762788693214,0.18925056,105680.0,105670.0,0.21706783]
[1762788693688,0.18926847,105670.0,105660.0,0.050689]
[1762788694102,0.18926847,105670.0,105660.0,0.0139]
[1762788694513,0.18925056,105680.0,105660.0,0.20318639]
[1762788694719,0.21365236,105690.0,105670.0,0.20425847]
[1762788694924,0.23130859,105690.0,105670.0,0.20425847]
[1762788695129,0.23130859,105690.0,105670.0,0.21724847]
[1762788695333,0.21702859,105690.0,105680.0,0.01299]
[1762788695743,0.18925056,105680.0,105660.0,0.2634297]
[1762788695957,0.19042659,105680.0,105670.0,0.18926847]
[1762788696160,0.19937236,105690.0,105670.0,0.21524847]
[1762788696362,0.18925056,105680.0,105670.0,0.01299]
[1762788697699,0.2069045,105680.0,105670.0,0.01299]
[1762788697969,0.18928639,105660.0,105650.0,0.386679]
[1762788698177,0.18928639,105660.0,105650.0,0.076669]
[1762788698779,0.00067807,105690.0,105680.0,0.18925056]
[1762788698996,0.00067807,105690.0,105680.0,0.20224056]
[1762788699213,0.00067807,105690.0,105680.0,0.21523056]
[1762788699628,0.06037807,105690.0,105670.0,0.050689]
[1762788699859,0.18925056,105680.0,105650.0,0.64401605]
[1762788700066,0.18925056,105680.0,105650.0,0.66000605]
[1762788700272,0.18926847,105670.0,105660.0,0.20227637]
[1762788700687,0.24085258,105690.0,105670.0,0.18926847]
[1762788700895,0.22162837,105690.0,105670.0,0.21524847]
[1762788701102,0.18925056,105680.0,105670.0,0.02598]
[1762788701605,0.20690755,105680.0,105670.0,0.21524847]
[1762788702029,0.20808358,105680.0,105670.0,0.02598]
[1762788702245,0.20808358,105680.0,105670.0,0.21524847]
[1762788702582,0.20808358,105680.0,105670.0,0.02598]
[1762788702934,0.01883302,105680.0,105670.0,0.21524847]
[1762788703146,0.20808358,105680.0,105670.0,0.02598]
[1762788704114,0.20808358,105680.0,105670.0,0.21524847]
[1762788704467,0.19042659,105680.0,105670.0,0.02598]
[1762788704769,0.19042659,105680.0,105670.0,0.21524847]
[1762788704973,0.00117603,105680.0,105670.0,0.21524847]
[1762788705164,0.00117603,105680.0,105670.0,0.95649149]
[1762788705624,0.00117603,105680.0,105670.0,0.58893747]
[1762788706031,0.00117603,105680.0,105670.0,0.95649149]
[1762788706337,0.00117603,105680.0,105670.0,0.58893747]
[1762788706665,0.00117603,105680.0,105670.0,0.95849149]
[1762788706876,0.00117603,105680.0,105670.0,0.59093747]
[1762788708712,0.00117603,105680.0,105670.0,0.59193747]
[1762788711091,0.00117603,105680.0,105670.0,0.95949149]
[1762788712568,0.00117603,105680.0,105670.0,0.90880249]
[1762788712772,0.00117603,105680.0,105670.0,0.97638783]
[1762788713411,0.00117603,105680.0,105670.0,0.97538783]
[1762788713923,0.00117603,105680.0,105670.0,0.95835478]
[1762788714128,0.00117603,105680.0,105670.0,0.54324847]
[1762788714329,0.00117603,105680.0,105670.0,0.40454393]
[1762788714578,0.00117603,105680.0,105670.0,0.5938124]
[1762788715184,0.00117603,105680.0,105670.0,0.54324847]
[1762788715382,0.00117603,105680.0,105670.0,0.91080249]
[1762788716047,0.19042659,105680.0,105670.0,0.39159466]
[1762788716225,0.00117603,105680.0,105670.0,0.59245313]
[1762788716575,0.00117603,105680.0,105670.0,0.08018466]
[1762788716789,0.00117603,105680.0,105670.0,0.26645313]
[1762788717155,0.00117603,105680.0,105670.0,0.26445313]
[1762788717369,0.00117603,105680.0,105670.0,0.26545313]
[1762788717569,0.00117603,105680.0,105670.0,0.26645313]
[1762788717938,0.19042659,105680.0,105670.0,0.07718466]
[1762788718660,0.00117603,105680.0,105670.0,0.26645313]
[1762788719213,0.19042659,105680.0,105670.0,0.09416534]
[1762788719646,0.19042659,105680.0,105670.0,0.01499]
[1762788719821,0.19042659,105680.0,105670.0,0.06576568]
[1762788720235,0.00117603,105680.0,105670.0,0.28343381]
[1762788720680,0.19042659,105680.0,105670.0,0.28343381]
[1762788721433,0.00117603,105680.0,105670.0,0.28343381]
[1762788722515,0.00117603,105680.0,105670.0,0.09416534]
[1762788722729,0.19042659,105680.0,105670.0,0.09416534]
[1762788722960,0.00117603,105680.0,105670.0,0.28343381]
[1762788723523,0.00117603,105680.0,105670.0,0.97398783]
[1762788723732,0.00117603,105680.0,105670.0,1.0771157]
[1762788723938,0.00117603,105680.0,105670.0,0.70956168]
[1762788724330,0.00117603,105680.0,105670.0,0.52029321]
[1762788724584,0.00117603,105680.0,105670.0,0.70956168]
[1762788725022,0.00117603,105680.0,105670.0,0.85706168]
[1762788726343,0.00117603,105680.0,105670.0,0.77126159]
[1762788726750,0.00117603,105680.0,105670.0,0.68634847]
[1762788727176,0.19042659,105680.0,105670.0,0.49708]
[1762788727743,0.19042659,105680.0,105670.0,0.17408]
[1762788727947,0.19042659,105680.0,105670.0,0.23017841]
[1762788728790,0.20883659,105680.0,105670.0,0.21718841]
[1762788729427,0.19042659,105680.0,105670.0,0.22877841]
[1762788730851,0.20883659,105680.0,105670.0,0.06968841]
[1762788731053,0.23425659,105680.0,105670.0,0.06968841]
[1762788731226,0.23425659,105680.0,105670.0,0.002]
[1762788731227,0.27043887,105680.0,105670.0,0.002]
[1762788731411,0.28817321,105680.0,105670.0,0.05280445]
[1762788731655,0.28817321,105680.0,105670.0,0.05180445]
[1762788732614,0.26275321,105680.0,105670.0,0.05180445]
[1762788732814,0.26275321,105680.0,105670.0,0.05080445]
[1762788733382,0.28817321,105680.0,105670.0,0.05080445]
[1762788736246,0.26275321,105680.0,105670.0,0.05080445]
[1762788737260,0.24501887,105680.0,105670.0,0.05080445]
[1762788737763,0.19042659,105680.0,105670.0,0.06239445]
[1762788738090,0.20883659,105680.0,105670.0,0.05080445]
[1762788738476,0.19042659,105680.0,105670.0,0.06239445]
[1762788739898,0.20883659,105680.0,105670.0,0.06239445]
[1762788740099,0.19042659,105680.0,105670.0,0.06239445]
[1762788740487,0.19042659,105680.0,105670.0,0.07114445]
[1762788740649,0.19042659,105680.0,105670.0,0.06097445]
[1762788740843,0.00117603,105680.0,105670.0,0.26041292]
[1762788741044,0.19042659,105680.0,105670.0,0.20960847]
[1762788741244,0.00117603,105680.0,105670.0,0.26028904]
[1762788741474,0.19042659,105680.0,105670.0,0.02034]
[1762788741673,0.19042659,105680.0,105670.0,0.06084702]
[1762788741985,0.20883659,105680.0,105670.0,0.05067702]
[1762788742202,0.19042659,105680.0,105670.0,0.06084702]
[1762788744225,0.19042659,105680.0,105670.0,0.01017]
[1762788745017,0.00117603,105680.0,105670.0,0.19943847]
[1762788745239,0.19042659,105680.0,105670.0,0.07785841]
[1762788745460,0.00117603,105680.0,105670.0,0.27729688]
[1762788746270,0.19042659,105680.0,105670.0,0.08802841]
[1762788746596,0.19042659,105680.0,105670.0,0.07785841]
[1762788746827,0.20801659,105680.0,105670.0,0.06768841]
[1762788747042,0.19042659,105680.0,105670.0,0.01017]
[1762788747246,0.19042659,105680.0,105670.0,0.02034]
[1762788747557,0.00117603,105680.0,105670.0,0.02034]
[1762788747778,0.19042659,105680.0,105670.0,0.07785841]
[1762788747994,0.19042659,105680.0,105670.0,0.08802841]
[1762788748207,0.00117603,105680.0,105670.0,0.27729688]
[1762788748436,0.00117603,105680.0,105670.0,0.20960847]
[1762788748658,0.00117603,105680.0,105670.0,0.29452159]
[1762788750419,0.00117603,105680.0,105670.0,0.29552159]
[1762788750600,0.00117603,105680.0,105670.0,0.29652159]
[1762788750857,0.00117603,105680.0,105670.0,0.29552159]
[1762788751061,0.00117603,105680.0,105670.0,0.29452159]
[1762788751265,0.18608679,105690.0,105680.0,0.02034]
[1762788751442,0.18608679,105690.0,105680.0,0.08797254]
[1762788751783,0.18632192,105690.0,105680.0,0.08797254]
[1762788752387,0.18632192,105690.0,105680.0,0.07780254]
[1762788752641,0.18925056,105680.0,105670.0,0.15454566]
[1762788752842,0.18925056,105680.0,105670.0,0.07980254]
[1762788753046,0.18925056,105680.0,105670.0,0.08797254]
[1762788753318,0.18925056,105680.0,105670.0,0.27724101]
[1762788753505,0.18632192,105690.0,105670.0,0.27724101]
[1762788753712,0.18632192,105690.0,105680.0,0.06090158]
[1762788753926,0.18632192,105690.0,105680.0,0.06190158]
[1762788754133,0.18632192,105690.0,105680.0,0.07207158]
[1762788754340,0.18632192,105690.0,105680.0,0.06090158]
[1762788754543,0.18632192,105690.0,105680.0,0.07107158]
[1762788754983,0.18632192,105690.0,105680.0,0.06090158]
[1762788756009,0.21669192,105690.0,105680.0,0.06090158]
[1762788756222,0.21669192,105690.0,105680.0,0.05073158]
[1762788756430,0.25942202,105690.0,105680.0,0.05073158]
[1762788757476,0.2956043,105690.0,105680.0,0.05073158]
[1762788758657,0.2706043,105690.0,105680.0,0.05073158]
[1762788758857,0.21683202,105690.0,105680.0,0.06090158]
[1762788759006,0.19910192,105690.0,105680.0,0.06090158]
[1762788760382,0.25942345,105690.0,105680.0,0.05073158]
[1762788761214,0.29560573,105690.0,105680.0,0.05073158]
[1762788762264,0.27060573,105690.0,105680.0,0.05073158]
[1762788762460,0.21683345,105690.0,105680.0,0.06090158]
[1762788762666,0.23442345,105690.0,105680.0,0.05073158]
[1762788763817,0.21683345,105690.0,105680.0,0.06090158]
[1762788764299,0.25942345,105690.0,105680.0,0.05073158]
[1762788764497,0.00023513,105690.0,105680.0,0.29614815]
[1762788764727,0.00023513,105690.0,105680.0,0.2772231]
[1762788764931,0.18946779,105690.0,105680.0,0.08797254]
[1762788765128,0.18946779,105690.0,105680.0,0.2772231]
[1762788765335,0.18946779,105690.0,105680.0,0.08797254]
[1762788765697,0.18946779,105690.0,105680.0,0.07780254]
[1762788766394,0.18946779,105690.0,105680.0,0.2670531]
[1762788766624,0.00023513,105690.0,105680.0,0.20959056]
[1762788766839,0.00023513,105690.0,105680.0,0.29450368]
[1762788768192,0.00023513,105690.0,105680.0,0.36759106]
[1762788769105,0.00023513,105690.0,105680.0,0.36859106]
[1762788769536,0.18878031,105700.0,105680.0,0.36859106]
[1762788769738,0.18892367,105700.0,105690.0,0.0845928]
[1762788769960,0.18935811,105700.0,105690.0,0.27382546]
[1762788770380,0.00014336,105700.0,105690.0,0.27382546]
[1762788770806,0.18935811,105700.0,105690.0,0.0845928]
[1762788771651,0.18935811,105700.0,105690.0,0.27382546]
[1762788771856,0.18935811,105700.0,105690.0,0.0845928]
[1762788772067,0.00014336,105700.0,105690.0,0.27382546]
[1762788773651,0.00014336,105700.0,105690.0,0.20617266]
[1762788773881,0.00014336,105700.0,105690.0,0.61408578]
[1762788774960,0.00014336,105700.0,105690.0,0.93693553]
[1762788775193,0.00014336,105700.0,105690.0,0.9673534]
[1762788775407,0.00037846,105700.0,105690.0,0.9673534]
[1762788775844,0.00037846,105700.0,105690.0,0.9693534]
[1762788776080,0.00037846,105700.0,105690.0,0.64650365]
[1762788776296,0.00037846,105700.0,105690.0,0.9693534]
[1762788776506,2.262e-05,105700.0,105690.0,1.29220315]
[1762788776747,2.262e-05,105700.0,105690.0,1.20729003]
[1762788776983,2.262e-05,105700.0,105690.0,0.88044028]
[1762788777428,2.262e-05,105700.0,105690.0,0.97279761]
[1762788778303,2.262e-05,105700.0,105690.0,1.29561581]
[1762788778509,2.262e-05,105700.0,105690.0,0.97276606]
[1762788778924,2.262e-05,105700.0,105690.0,0.64991631]
[1762788779122,2.262e-05,105700.0,105690.0,0.97276606]
[1762788780436,2.262e-05,105700.0,105690.0,0.64991631]
[1762788780862,0.18923737,105700.0,105690.0,0.37635787]
[1762788781324,0.18923737,105700.0,105690.0,0.41538041]
[1762788781756,0.18923737,105700.0,105690.0,0.08391041]
[1762788781969,0.23157737,105700.0,105690.0,0.05359496]
[1762788782171,0.20660737,105700.0,105690.0,0.05359496]
[1762788782395,0.18923737,105700.0,105690.0,0.06178496]
[1762788782609,0.18923737,105700.0,105690.0,0.06478496]
[1762788783012,0.23157737,105700.0,105690.0,0.05659496]
[1762788783237,0.23157737,105700.0,105690.0,0.05059496]
[1762788783447,0.18923266,105690.0,105680.0,0.12083012]
[1762788783654,0.18923266,105690.0,105680.0,0.05059496]
[1762788783865,0.18923266,105690.0,105680.0,0.05878496]
[1762788785122,0.18923266,105690.0,105680.0,0.05978496]
[1762788785362,0.18923737,105700.0,105680.0,0.25722552]
[1762788785562,0.18923266,105690.0,105680.0,0.05978496]
[1762788785973,0.18923266,105690.0,105680.0,0.06078496]
[1762788786188,0.18923737,105700.0,105680.0,0.25822552]
[1762788786392,0.18923266,105690.0,105680.0,0.06897496]
[1762788787639,0.21854266,105690.0,105680.0,0.05259496]
[1762788788377,0.24351266,105690.0,105680.0,0.05159496]
[1762788788514,0.21854266,105690.0,105680.0,0.05159496]
[1762788788987,0.24351266,105690.0,105680.0,0.001]
[1762788789410,0.27969494,105690.0,105680.0,0.002]
[1762788789618,0.25472494,105690.0,105680.0,0.002]
[1762788790882,0.27969494,105690.0,105680.0,0.002]
[1762788791092,0.32658817,105690.0,105680.0,0.002]
[1762788791505,0.27969494,105690.0,105680.0,0.002]
[1762788791828,0.27969494,105690.0,105680.0,0.001]
[1762788792417,0.18925056,105680.0,105670.0,0.05059496]
[1762788792615,0.23159056,105680.0,105670.0,0.05059496]
[1762788793041,0.26777284,105680.0,105670.0,0.05059496]
[1762788793351,0.26777284,105680.0,105650.0,0.34597344]
[1762788793352,0.18926847,105670.0,105660.0,0.05059496]
[1762788793783,0.21857847,105670.0,105660.0,0.05059496]
[1762788794010,0.24354847,105670.0,105660.0,0.05059496]
[1762788794384,0.18928639,105660.0,105650.0,0.05059496]
[1762788794780,0.18928639,105660.0,105650.0,0.05878496]
[1762788794977,0.18928639,105660.0,105650.0,0.24808926]
[1762788795177,0.18928639,105660.0,105650.0,0.25627926]
[1762788795658,0.18926847,105670.0,105650.0,0.25775733]
[1762788795870,0.18926847,105670.0,105660.0,0.01019]
[1762788796751,0.18926847,105670.0,105660.0,0.00819]
[1762788797512,0.18928639,105660.0,105650.0,0.05207303]
[1762788797857,0.20665639,105660.0,105650.0,0.05207303]
[1762788798201,0.23162639,105660.0,105650.0,0.05207303]
[1762788798415,0.23162639,105660.0,105650.0,0.00147807]
[1762788798615,0.23162639,105660.0,105650.0,0.00047807]
[1762788798826,0.21102356,105660.0,105650.0,0.00147807]
[1762788799053,0.19200932,105660.0,105650.0,0.00147807]
[1762788799690,0.14966932,105660.0,105650.0,0.00829807]
[1762788800379,0.2032216,105660.0,105650.0,0.00147807]
[1762788800769,0.2032216,105660.0,105650.0,0.00047807]
[1762788801649,0.14966932,105660.0,105650.0,0.00729807]
[1762788802482,0.14966932,105660.0,105650.0,0.19660237]
[1762788802697,0.18928639,105660.0,105650.0,0.20342237]
[1762788803010,0.18928639,105660.0,105650.0,0.00729807]
[1762788804218,0.20557639,105660.0,105650.0,0.00729807]
[1762788804425,0.23071639,105660.0,105650.0,0.00047807]
[1762788804832,0.26689867,105660.0,105650.0,0.00047807]
[1762788805100,0.24175867,105660.0,105650.0,0.00047807]
[1762788805416,0.26689867,105660.0,105650.0,0.00047807]
[1762788805743,0.24175867,105660.0,105650.0,0.00047807]
[1762788805970,0.26689867,105660.0,105650.0,0.00047807]
[1762788808271,0.65518309,105660.0,105650.0,0.00047807]
[1762788808476,0.76098318,105660.0,105650.0,1e-08]
[1762788809173,0.71336647,105660.0,105650.0,1e-08]
[1762788809813,0.69336647,105660.0,105650.0,1e-08]
[1762788810023,0.24313638,105660.0,105650.0,1e-08]
[1762788810224,0.2069541,105660.0,105650.0,0.01008818]
[1762788810576,0.24313638,105660.0,105650.0,0.01008818]
[1762788810777,0.2069541,105660.0,105650.0,0.01008818]
[1762788810978,0.26242638,105660.0,105650.0,0.00326818]
[1762788811366,0.28456638,105660.0,105650.0,0.00326818]
[1762788811600,0.25942638,105660.0,105650.0,0.00326818]
[1762788811811,0.24313638,105660.0,105650.0,0.01008818]
[1762788812021,0.26142638,105660.0,105650.0,0.00326818]
[1762788812448,0.28656638,105660.0,105650.0,0.00326818]
[1762788812908,0.60956638,105660.0,105650.0,0.00326818]
[1762788819354,0.77000295,105660.0,105650.0,1e-08]
[1762788819566,0.7526614,105660.0,105650.0,1e-08]
[1762788820810,0.7506614,105660.0,105650.0,1e-08]
[1762788821221,0.7546614,105660.0,105650.0,1e-08]
[1762788821425,0.85105439,105660.0,105650.0,1e-08]
[1762788821634,0.86105438,105660.0,105650.0,1e-08]
[1762788824376,0.96088438,105660.0,105650.0,1e-08]
[1762788824595,0.189376,105610.0,105600.0,0.00251596]
[1762788824824,0.23528371,105610.0,105600.0,0.00265932]
[1762788825045,0.28042371,105610.0,105600.0,0.00265932]
[1762788825520,0.60342371,105610.0,105600.0,0.00265932]
[1762788826643,0.63960599,105610.0,105600.0,0.00265932]
[1762788826911,0.64933995,105610.0,105600.0,0.00265932]
[1762788827348,0.73514004,105610.0,105600.0,0.00014336]
[1762788827582,0.76455531,105610.0,105600.0,1e-08]
[1762788827800,0.87265703,105610.0,105600.0,1e-08]
[1762788828239,0.84324176,105610.0,105600.0,1e-08]
[1762788828459,0.88265702,105610.0,105600.0,1e-08]
[1762788828905,0.85324175,105610.0,105600.0,1e-08]
[1762788830025,0.85424175,105610.0,105600.0,1e-08]
[1762788830457,0.85424175,105610.0,105570.0,0.0004]
[1762788830458,0.57754209,105580.0,105570.0,1e-08]
[1762788830697,0.77970689,105580.0,105570.0,1e-08]
[1762788830909,0.81484688,105580.0,105570.0,1e-08]
[1762788831128,0.81864266,105580.0,105570.0,1e-08]
[1762788831352,0.85852478,105580.0,105570.0,1e-08]
[1762788831803,0.85952478,105580.0,105570.0,1e-08]
[1762788832037,0.85852478,105580.0,105570.0,1e-08]
[1762788832257,0.24564798,105560.0,105550.0,1e-08]
[1762788832472,0.4746076,105560.0,105550.0,0.00047856]
[1762788832964,0.39679643,105560.0,105550.0,0.00047856]
[1762788833181,0.37679643,105560.0,105550.0,0.00047856]
[1762788833413,0.54029365,105550.0,105510.0,0.0004]
[1762788833665,0.2535298,105520.0,105510.0,0.00054348]
[1762788833885,0.27119751,105520.0,105510.0,0.00054348]
[1762788834098,0.25552751,105520.0,105510.0,0.00667348]
[1762788834555,0.27119751,105520.0,105510.0,0.00054348]
[1762788834749,0.29385751,105520.0,105510.0,0.00054348]
[1762788834974,0.29385751,105520.0,105510.0,0.00254348]
[1762788835208,0.27119751,105520.0,105510.0,0.00254348]
[1762788835435,0.61685751,105520.0,105510.0,0.00254348]
[1762788835651,0.63685751,105520.0,105510.0,0.00254348]
[1762788836297,0.63685751,105520.0,105510.0,0.00487689]
[1762788836982,0.22573777,105510.0,105500.0,0.0004]
[1762788837196,0.31454548,105510.0,105500.0,0.00053621]
[1762788837414,0.66785469,105510.0,105500.0,0.00053621]
[1762788838330,0.61754548,105510.0,105500.0,0.00053621]
[1762788838590,0.27188548,105510.0,105500.0,0.00053621]
[1762788838819,0.2192132,105510.0,105500.0,0.00657621]